{"text_format":"3","workbook":"xlsx","n_sheets":3,"sheets":["Blankett","Sammanställning","Rullistor"],"not_rendered":{"images":1,"macros":1,"defined_names":2},"read":"whole","date_system":"1900"}

{"sheet":"Blankett","index":0,"n_rows":73,"n_cols":19,"rows_kept":73,"merged":[[73,1,133,3]]}
[{"$nulls":5},"Vald enhet"]
[null,"Obs automatgenererad sammanställning uppkommer i flik \"Sammanställning\".",{"$nulls":3},1]
[null,"Säkerhetskontroll Tankfordon",{"$nulls":3},1]
[]
[null,"Typ av enhet>","Ange enhet",null,null,{"$f":"IF(C5=\"Ange enhet\",2,1)","v":2}]
[null,"Reg. Nr.",{"$nulls":15},"Reg. Nr.",{"$f":"IF(C6<>\"\",C6,\"\")","v":""}]
[null,"Tank ID Nr.",{"$nulls":3},3]
[{"$nulls":5},3]
[]
[null,"Allvarlig brist: automatiskt underkänd om ej godkänd"]
[null,null,"Kontroll","Datum                          (ÅÅÅÅ-MM-DD)",null,"Värde Radio","Korrigerat värde radio","Ej godkänd=1","#","Ej godkända punkter","Stopp","Stoppunkt ej godkänd=1","Punkt ej godkänd=1",null,null,"Teknisk Information"]
[null,"Erforderliga Handlingar",{"$nulls":16},"Kröning giltig t.o.m. (ÅÅÅÅ-MM-DD)"]
[null,"Reg. Bevis","Ange bedömning",null,null,{"$f":"IF(C13=\"Ange bedömning\",0,IF(C13=\"Godkänd\",1,IF(C13=\"Ej Godkänd\",2)))","v":0},{"$f":"IF(F13=\"\",\"\",F13)","v":0},{"$f":"IF(J13<>\"\",1,0)","v":0},{"$f":"IF(H13=0,\"\",SUM($H$13:H13))","v":""},{"$f":"IF(G13=2,B13,\"\")","v":""},null,{"$f":"IF(AND(K13=\"stopp\",G13=2),1,0)","v":0},{"$f":"IF(G13=2,1,0)","v":0},null,null,"Välj alt. för lossningsutrustning>",null,"Ange alternativ"]
[null,"ADR-certifikat","Ange bedömning",null,null,{"$f":"IF(C14=\"Ange bedömning\",0,IF(C14=\"Godkänd\",1,IF(C14=\"Ej Godkänd\",2,IF(C14=\"Ej Tillämpbart\",3))))","v":0},{"$f":"IF(F14=\"\",\"\",F14)","v":0},{"$f":"IF(J14<>\"\",1,0)","v":0},{"$f":"IF(H14=0,\"\",SUM($H$13:H14))","v":""},{"$f":"IF(G14=2,B14,\"\")","v":""},"Stopp",{"$f":"IF(AND(K14=\"stopp\",G14=2),1,0)","v":0},{"$f":"IF(G14=2,1,0)","v":0},null,null,"Välj alt. för lossningsutrustning>",null,"Ange alternativ"]
[null,"ADR-certifikat, giltig t.o.m.",{"$nulls":3},{"$f":"IF(D15=\"\",2,1)","v":2},2,{"$f":"IF(J15<>\"\",1,0)","v":1},{"$f":"IF(H15=0,\"\",SUM($H$13:H15))","v":1},"ADR-certifikat, giltig t.o.m.","Stopp",1,1]
[null,"Tankkod","Ange tankkod",null,null,{"$f":"IF(C16=\"Ange tankkod\",2,1)","v":2},2,1,{"$f":"IF(H16=0,\"\",SUM($H$13:H16))","v":2},"Tankkod","Stopp",1,1,null,null,"Välj manifold>",null,"Ange typ av manifold"]
[null,"Skriftlig instruktion","Ange bedömning",null,null,{"$f":"IF(C17=\"Ange bedömning\",0,IF(C17=\"Godkänd\",1,IF(C17=\"Ej Godkänd\",2,IF(C17=\"Ej Tillämpbart\",3))))","v":0},0,0,{"$f":"IF(H17=0,\"\",SUM($H$13:H17))","v":""},"",null,0,0]
[null,"Övrig Utrustning",{"$nulls":13},"Finns slangtrumma?>","Ange Ja/Nej"]
[null,"Registreringsskyltar (synliga)","Ange bedömning",null,null,{"$f":"IF(C19=\"Ange bedömning\",0,IF(C19=\"Godkänd\",1,IF(C19=\"Ej Godkänd\",2)))","v":0},0,0,{"$f":"IF(H19=0,\"\",SUM($H$13:H19))","v":""},"",null,0,0,null,null,"Dimension (Tum)"]
[null,"ADR-skyltar (hela, läsbara)","Ange bedömning",null,null,{"$f":"IF(C20=\"Ange bedömning\",0,IF(C20=\"Godkänd\",1,IF(C20=\"Ej Godkänd\",2,)))","v":0},0,0,{"$f":"IF(H20=0,\"\",SUM($H$13:H20))","v":""},"",null,0,0,null,null,"Längd (m)"]
[null,"Etiketter på tank","Ange bedömning",null,null,{"$f":"IF(C21=\"Ange bedömning\",0,IF(C21=\"Godkänd\",1,IF(C21=\"Ej Godkänd\",2,)))","v":0},0,0,{"$f":"IF(H21=0,\"\",SUM($H$13:H21))","v":""},"",null,0,0]
[null,"Brandsläckare, inspekterade och godkända","Ange bedömning",null,null,0,0,0,{"$f":"IF(H22=0,\"\",SUM($H$13:H22))","v":""},"","Stopp",0,0,null,null,"Finns slangtrumma?>","Ange Ja/Nej"]
[null,"Dräneringsrör rätt utformade från domsarg, 10 cm ö. mark","Ange bedömning",null,null,0,0,0,{"$f":"IF(H23=0,\"\",SUM($H$13:H23))","v":""},"",null,0,0,null,null,"Dimension (Tum)"]
[null,"Metallhink med jordlina","Ange bedömning",null,null,0,0,0,{"$f":"IF(H24=0,\"\",SUM($H$13:H24))","v":""},"",null,0,0,null,null,"Längd (m)"]
[null,"Stängningsanordning manövrerbar för armaturskåpsdränering","Ange bedömning",null,null,0,0,0,{"$f":"IF(H25=0,\"\",SUM($H$13:H25))","v":""},"",null,0,0]
[null,"Stoppklossar","Ange bedömning",null,null,{"$f":"IF(C26=\"Ange bedömning\",0,IF(C26=\"Godkänd\",1,IF(C26=\"Ej Godkänd\",2)))","v":0},0,0,{"$f":"IF(H26=0,\"\",SUM($H$13:H26))","v":""},"",null,0,0,null,null,"Tank"]
[null,"Varningslyktor, koner eller trianglar","Ange bedömning",null,null,0,0,0,{"$f":"IF(H27=0,\"\",SUM($H$13:H27))","v":""},"",null,0,0,null,null,"Antal fack",null,"St"]
[null,"Bärbar ljuskälla Atex-godkänd","Ange bedömning",null,null,0,0,0,{"$f":"IF(H28=0,\"\",SUM($H$13:H28))","v":""},"",null,0,0,null,null,"Totalt antal liter",null,"Liter"]
[null,"Saneringsutrustning","Ange bedömning",null,null,0,0,0,{"$f":"IF(H29=0,\"\",SUM($H$13:H29))","v":""},"",null,0,0,null,null,"Kofferdammar",null,"Ja/Nej"]
[null,"Reservkläder","Ange bedömning",null,null,0,0,0,{"$f":"IF(H30=0,\"\",SUM($H$13:H30))","v":""},"",null,0,0]
[null,"Personlig skyddsutrustning","Ange bedömning",null,null,0,0,0,{"$f":"IF(H31=0,\"\",SUM($H$13:H31))","v":""},"",null,0,0,null,null,"Volym i liter enl. nivå A i DSAB:s bilaga 3 Regelverk Tankbilstransporter per fack"]
[null,"Säkerhet vid lastning",{"$nulls":13},1,null,"Liter"]
[null,"10-polig kontakt","Ange bedömning",null,null,{"$f":"IF(C33=\"Ange bedömning\",0,IF(C33=\"Godkänd\",1,IF(C33=\"Ej Godkänd\",2)))","v":0},0,0,{"$f":"IF(H33=0,\"\",SUM($H$13:H33))","v":""},"","Stopp",0,0,null,null,2,null,"Liter"]
[null,"Fackvolym -kontrollerad enl. bilaga 3 DSAB Regelverk Tankbilstransporter","Ange bedömning",null,null,{"$f":"IF(C34=\"Ange bedömning\",0,IF(C34=\"Godkänd\",1,IF(C34=\"Ej Godkänd\",2)))","v":0},0,0,{"$f":"IF(H34=0,\"\",SUM($H$13:H34))","v":""},"","Stopp",0,0,null,null,3,null,"Liter"]
[null,"Läcksökningskontroll (intyg skall finnas, ange giltighetsdatum)","Ange bedömning",null,null,{"$f":"IF(C35=\"Ange bedömning\",0,IF(C35=\"Godkänd\",1,IF(C35=\"Ej Godkänd\",2)))","v":0},0,0,{"$f":"IF(H35=0,\"\",SUM($H$13:H35))","v":""},"","Stopp",0,0,null,null,4,null,"Liter"]
[null,"Eller",{"$nulls":13},5,null,"Liter"]
[null,"Okulär besiktning (intyg skall finnas, ange giltighetsdatum)","Ange bedömning",null,null,{"$f":"IF(C37=\"Ange bedömning\",0,IF(C37=\"Godkänd\",1,IF(C37=\"Ej Godkänd\",2)))","v":0},0,0,{"$f":"IF(H37=0,\"\",SUM($H$13:H37))","v":""},"","Stopp",0,0,null,null,6,null,"Liter"]
[null,"Intyg funktionsprov överfyllnadsskydd (ange giltighetsdatum)","Ange bedömning",null,null,0,0,0,{"$f":"IF(H38=0,\"\",SUM($H$13:H38))","v":""},"","Stopp",0,0,null,null,7,null,"Liter"]
[null,"Gasåterföring (komplett system inkl. slang)","Ange bedömning",null,null,0,0,0,{"$f":"IF(H39=0,\"\",SUM($H$13:H39))","v":""},"","Stopp",0,0,null,null,8,null,"Liter"]
[null,"Kontroll av jordning gasåterföringsslang (£ 3 W)","Ange bedömning",null,null,0,0,0,{"$f":"IF(H40=0,\"\",SUM($H$13:H40))","v":""},"","Stopp",0,0]
[null,"Säker \"tvångsöppning\" av bottenventil (stängd vid lastning)","Ange bedömning",null,null,0,0,0,{"$f":"IF(H41=0,\"\",SUM($H$13:H41))","v":""},"","Stopp",0,0,null,null,"Resultat av säkerhetskontroll:",null,{"$f":"IF(M7=0,\"Godkänd 1 år\",IF(AND($M$7>0,$L$7=0),\"Godkänd 1 månad\",\"Underkänd\"))","v":"Godkänd 1 år"},"<Fylls i automatiskt"]
[null,"Kontroll av säker funktion för \"dubbla manöverpaneler\"","Ange bedömning",null,null,0,0,0,{"$f":"IF(H42=0,\"\",SUM($H$13:H42))","v":""},"","Stopp",0,0]
[null,"Säker \"lossningsmanifolder\" (stängd vid lastning)","Ange bedömning",null,null,0,0,0,{"$f":"IF(H43=0,\"\",SUM($H$13:H43))","v":""},"","Stopp",0,0,null,null,"Datum (ÅÅÅÅ-MM-DD)"]
[null,"Separat inlastningskoppling -En per fack","Ange bedömning",null,null,{"$f":"IF(C44=\"Ange bedömning\",0,IF(C44=\"Godkänd\",1,IF(C44=\"Ej Godkänd\",2)))","v":0},0,0,{"$f":"IF(H44=0,\"\",SUM($H$13:H44))","v":""},"","Stopp",0,0]
[null,"Eller",{"$nulls":13},"Nästa kontroll senast:",null,{"$f":"IF(R41=\"Underkänd\",\"\",IF(R41=\"Godkänd 1 år\",EDATE(R43,13),IF(R41=\"Godkänd 1 månad\",EDATE(R43,1),\"\")))","v":"1901-01-31"},"<Fylls i automatiskt"]
[null,"Manifolder med endast en anslutning (övriga pluggade)","Ange bedömning",null,null,{"$f":"IF(C46=\"Ange bedömning\",0,IF(C46=\"Godkänd\",1,IF(C46=\"Ej Godkänd\",2)))","v":0},0,0,{"$f":"IF(H46=0,\"\",SUM($H$13:H46))","v":""},"","Stopp",0,0]
[null,"Droppfri koppling för dränering av manifolder","Ange bedömning",null,null,0,0,0,{"$f":"IF(H47=0,\"\",SUM($H$13:H47))","v":""},"",null,0,0]
[null,"Inlastningskoppling (3\" industrikoppling)","Ange bedömning",null,null,{"$f":"IF(C48=\"Ange bedömning\",0,IF(C48=\"Godkänd\",1,IF(C48=\"Ej Godkänd\",2)))","v":0},0,0,{"$f":"IF(H48=0,\"\",SUM($H$13:H48))","v":""},"","Stopp",0,0,null,null,"Namn kontrollant"]
[null,"Kontroll av läckage kopplingar","Ange bedömning",null,null,{"$f":"IF(C49=\"Ange bedömning\",0,IF(C49=\"Godkänd\",1,IF(C49=\"Ej Godkänd\",2)))","v":0},0,0,{"$f":"IF(H49=0,\"\",SUM($H$13:H49))","v":""},"",null,0,0,null,null,"Företag"]
[null,"Kontroll av tre förslutningar","Ange bedömning",null,null,0,0,0,{"$f":"IF(H50=0,\"\",SUM($H$13:H50))","v":""},"",null,0,0,null,null,"Organisationsnummer"]
[null,"Kontakt för överfyllnadsskydd","Ange bedömning",null,null,0,0,0,{"$f":"IF(H51=0,\"\",SUM($H$13:H51))","v":""},"",null,0,0,null,null,"Telefonnr"]
[null,"Tryckluftsanslutning för serviceluft","Ange bedömning",null,null,0,0,0,{"$f":"IF(H52=0,\"\",SUM($H$13:H52))","v":""},"",null,0,0,null,null,"E-post"]
[null,"Potentialreducering i varje tankbilsfack","Ange bedömning",null,null,0,0,0,{"$f":"IF(H53=0,\"\",SUM($H$13:H53))","v":""},"",null,0,0,null,null,"Transportföretag"]
[null,"Skyddsräcken hela och spärrfunktion skall fungera","Ange bedömning",null,null,0,0,0,{"$f":"IF(H54=0,\"\",SUM($H$13:H54))","v":""},"",null,0,0,null,null,"Kontaktperson"]
[null,"Halkskydd ovanför domen skall vara tillräckligt","Ange bedömning",null,null,0,0,0,{"$f":"IF(H55=0,\"\",SUM($H$13:H55))","v":""},"",null,0,0,null,null,"Telefonnr"]
[null,"Kontroll av domluckor inkl. packningar - hela","Ange bedömning",null,null,{"$f":"IF(C56=\"Ange bedömning\",0,IF(C56=\"Godkänd\",1,IF(C56=\"Ej Godkänd\",2)))","v":0},0,0,{"$f":"IF(H56=0,\"\",SUM($H$13:H56))","v":""},"",null,0,0,null,null,"E-post"]
[null,"Flamskydd installerat","Ange bedömning",null,null,0,0,0,{"$f":"IF(H57=0,\"\",SUM($H$13:H57))","v":""},"",null,0,0]
[null,"Tiopoligkontakt","Ange bedömning",null,null,{"$f":"IF(C58=\"Ange bedömning\",0,IF(C58=\"Godkänd\",1,IF(C58=\"Ej Godkänd\",2)))","v":0},0,0,{"$f":"IF(H58=0,\"\",SUM($H$13:H58))","v":""},"","Stopp",0,0]
[null,"Säkerhet vid lossning"]
[null,"Jordlina (skall finnas med klämma vid tankkod LGBF)","Ange bedömning",null,null,0,0,0,{"$f":"IF(H60=0,\"\",SUM($H$13:H60))","v":""},"",null,0,0]
[null,"Kontroll av jordning på jordlina (£ 3 W)","Ange bedömning",null,null,0,0,0,{"$f":"IF(H61=0,\"\",SUM($H$13:H61))","v":""},"",null,0,0]
[null,"Kontroll av jordning på lossningsslang (£ 3 W)","Ange bedömning",null,null,0,0,0,{"$f":"IF(H62=0,\"\",SUM($H$13:H62))","v":""},"",null,0,0]
[null,"Manöverreglage","Ange bedömning",null,null,0,0,0,{"$f":"IF(H63=0,\"\",SUM($H$13:H63))","v":""},"",null,0,0]
[null,"Kontroll av ev. förbikoppling ","Ange bedömning",null,null,0,0,0,{"$f":"IF(H64=0,\"\",SUM($H$13:H64))","v":""},"",null,0,0]
[null,"Visuell kontroll av lossningsslangar","Ange bedömning",null,null,{"$f":"IF(C65=\"Ange bedömning\",0,IF(C65=\"Godkänd\",1,IF(C65=\"Ej Godkänd\",2)))","v":0},0,0,{"$f":"IF(H65=0,\"\",SUM($H$13:H65))","v":""},"",null,0,0]
[null,"Kontroll av luftavskiljare kopplad till gasretursystem","Ange bedömning",null,null,0,0,0,{"$f":"IF(H66=0,\"\",SUM($H$13:H66))","v":""},"",null,0,0]
[{"$nulls":8},{"$f":"MAX(I13:I66)","v":2}]
[]
[]
[]
[]
[null,"Anteckningar säkerhetskontroll","Reg. Nr.",{"$f":"IF(C6<>\"\",C6,\"\")","v":""}]
[null,"För att få ny rad tryck: Alt+Enter"]

{"sheet":"Sammanställning","index":1,"n_rows":75,"n_cols":4,"rows_kept":75,"merged":[[74,1,107,3]]}
[]
[]
[]
[]
[]
[null,null,"Säkerhetskontroll Tankfordon"]
[]
[]
[null,"Datum",{"$f":"Blankett!R43","v":"00:00:00"}]
[null,"Reg. Nr.",{"$f":"IF(Blankett!C6<>\"\",Blankett!C6,\"\")","v":""}]
[null,"Tank ID Nr.",{"$f":"IF(Blankett!C7<>\"\",Blankett!C7,\"\")","v":""}]
[]
[null,"Resultat av säkerhetskontroll:",{"$f":"Blankett!R41","v":"Godkänd 1 år"}]
[null,"Nästa kontroll senast:",{"$f":"Blankett!R45","v":"1901-01-31"}]
[]
[null,"Underskrift kontrollant"]
[null,"Namn kontrollant",{"$f":"Blankett!R48","v":0}]
[null,"Företag",{"$f":"Blankett!R49","v":0}]
[null,"Organisationsnummer",{"$f":"Blankett!R50","v":0}]
[null,"Telefonnr",{"$f":"Blankett!R51","v":0}]
[null,"E-post",{"$f":"Blankett!R52","v":0}]
[null,"Transportföretag",{"$f":"Blankett!R53","v":0}]
[null,"Kontaktperson",{"$f":"Blankett!R54","v":0}]
[null,"Telefonnr",{"$f":"Blankett!R55","v":0}]
[null,"E-post",{"$f":"Blankett!R56","v":0}]
[]
[null,"Åtgärdslista"]
[null,"# NR","Punkt","Stoppunkt"]
[1,{"$f":"IF(A29<=Blankett!$I$67,A29,\"\")","v":1},{"$f":"IFERROR(VLOOKUP(B29,Blankett!$I$13:$K$70,2,FALSE),\"\")","v":"ADR-certifikat, giltig t.o.m."},{"$f":"IFERROR(IF(VLOOKUP(B29,Blankett!$I$12:$K$70,3,FALSE)=0,\"\",VLOOKUP(B29,Blankett!$I$12:$K$70,3,FALSE)),\"\")","v":"Stopp"}]
[2,{"$f":"IF(A30<=Blankett!$I$67,A30,\"\")","v":2},{"$f":"IFERROR(VLOOKUP(B30,Blankett!$I$13:$K$70,2,FALSE),\"\")","v":"Tankkod"},{"$f":"IFERROR(IF(VLOOKUP(B30,Blankett!$I$12:$K$70,3,FALSE)=0,\"\",VLOOKUP(B30,Blankett!$I$12:$K$70,3,FALSE)),\"\")","v":"Stopp"}]
[3,{"$f":"IF(A31<=Blankett!$I$67,A31,\"\")","v":""},{"$f":"IFERROR(VLOOKUP(B31,Blankett!$I$13:$K$70,2,FALSE),\"\")","v":""},{"$f":"IFERROR(IF(VLOOKUP(B31,Blankett!$I$12:$K$70,3,FALSE)=0,\"\",VLOOKUP(B31,Blankett!$I$12:$K$70,3,FALSE)),\"\")","v":""}]
[4,{"$f":"IF(A32<=Blankett!$I$67,A32,\"\")","v":""},{"$f":"IFERROR(VLOOKUP(B32,Blankett!$I$13:$K$70,2,FALSE),\"\")","v":""},{"$f":"IFERROR(IF(VLOOKUP(B32,Blankett!$I$12:$K$70,3,FALSE)=0,\"\",VLOOKUP(B32,Blankett!$I$12:$K$70,3,FALSE)),\"\")","v":""}]
[5,{"$f":"IF(A33<=Blankett!$I$67,A33,\"\")","v":""},{"$f":"IFERROR(VLOOKUP(B33,Blankett!$I$13:$K$70,2,FALSE),\"\")","v":""},{"$f":"IFERROR(IF(VLOOKUP(B33,Blankett!$I$12:$K$70,3,FALSE)=0,\"\",VLOOKUP(B33,Blankett!$I$12:$K$70,3,FALSE)),\"\")","v":""}]
[6,{"$f":"IF(A34<=Blankett!$I$67,A34,\"\")","v":""},{"$f":"IFERROR(VLOOKUP(B34,Blankett!$I$13:$K$70,2,FALSE),\"\")","v":""},{"$f":"IFERROR(IF(VLOOKUP(B34,Blankett!$I$12:$K$70,3,FALSE)=0,\"\",VLOOKUP(B34,Blankett!$I$12:$K$70,3,FALSE)),\"\")","v":""}]
[7,{"$f":"IF(A35<=Blankett!$I$67,A35,\"\")","v":""},{"$f":"IFERROR(VLOOKUP(B35,Blankett!$I$13:$K$70,2,FALSE),\"\")","v":""},{"$f":"IFERROR(IF(VLOOKUP(B35,Blankett!$I$12:$K$70,3,FALSE)=0,\"\",VLOOKUP(B35,Blankett!$I$12:$K$70,3,FALSE)),\"\")","v":""}]
[8,{"$f":"IF(A36<=Blankett!$I$67,A36,\"\")","v":""},{"$f":"IFERROR(VLOOKUP(B36,Blankett!$I$13:$K$70,2,FALSE),\"\")","v":""},{"$f":"IFERROR(IF(VLOOKUP(B36,Blankett!$I$12:$K$70,3,FALSE)=0,\"\",VLOOKUP(B36,Blankett!$I$12:$K$70,3,FALSE)),\"\")","v":""}]
[9,{"$f":"IF(A37<=Blankett!$I$67,A37,\"\")","v":""},{"$f":"IFERROR(VLOOKUP(B37,Blankett!$I$13:$K$70,2,FALSE),\"\")","v":""},{"$f":"IFERROR(IF(VLOOKUP(B37,Blankett!$I$12:$K$70,3,FALSE)=0,\"\",VLOOKUP(B37,Blankett!$I$12:$K$70,3,FALSE)),\"\")","v":""}]
[10,{"$f":"IF(A38<=Blankett!$I$67,A38,\"\")","v":""},{"$f":"IFERROR(VLOOKUP(B38,Blankett!$I$13:$K$70,2,FALSE),\"\")","v":""},{"$f":"IFERROR(IF(VLOOKUP(B38,Blankett!$I$12:$K$70,3,FALSE)=0,\"\",VLOOKUP(B38,Blankett!$I$12:$K$70,3,FALSE)),\"\")","v":""}]
[11,{"$f":"IF(A39<=Blankett!$I$67,A39,\"\")","v":""},{"$f":"IFERROR(VLOOKUP(B39,Blankett!$I$13:$K$70,2,FALSE),\"\")","v":""},{"$f":"IFERROR(IF(VLOOKUP(B39,Blankett!$I$12:$K$70,3,FALSE)=0,\"\",VLOOKUP(B39,Blankett!$I$12:$K$70,3,FALSE)),\"\")","v":""}]
[12,{"$f":"IF(A40<=Blankett!$I$67,A40,\"\")","v":""},{"$f":"IFERROR(VLOOKUP(B40,Blankett!$I$13:$K$70,2,FALSE),\"\")","v":""},{"$f":"IFERROR(IF(VLOOKUP(B40,Blankett!$I$12:$K$70,3,FALSE)=0,\"\",VLOOKUP(B40,Blankett!$I$12:$K$70,3,FALSE)),\"\")","v":""}]
[13,{"$f":"IF(A41<=Blankett!$I$67,A41,\"\")","v":""},{"$f":"IFERROR(VLOOKUP(B41,Blankett!$I$13:$K$70,2,FALSE),\"\")","v":""},{"$f":"IFERROR(IF(VLOOKUP(B41,Blankett!$I$12:$K$70,3,FALSE)=0,\"\",VLOOKUP(B41,Blankett!$I$12:$K$70,3,FALSE)),\"\")","v":""}]
[14,{"$f":"IF(A42<=Blankett!$I$67,A42,\"\")","v":""},{"$f":"IFERROR(VLOOKUP(B42,Blankett!$I$13:$K$70,2,FALSE),\"\")","v":""},{"$f":"IFERROR(IF(VLOOKUP(B42,Blankett!$I$12:$K$70,3,FALSE)=0,\"\",VLOOKUP(B42,Blankett!$I$12:$K$70,3,FALSE)),\"\")","v":""}]
[15,{"$f":"IF(A43<=Blankett!$I$67,A43,\"\")","v":""},{"$f":"IFERROR(VLOOKUP(B43,Blankett!$I$13:$K$70,2,FALSE),\"\")","v":""},{"$f":"IFERROR(IF(VLOOKUP(B43,Blankett!$I$12:$K$70,3,FALSE)=0,\"\",VLOOKUP(B43,Blankett!$I$12:$K$70,3,FALSE)),\"\")","v":""}]
[16,{"$f":"IF(A44<=Blankett!$I$67,A44,\"\")","v":""},{"$f":"IFERROR(VLOOKUP(B44,Blankett!$I$13:$K$70,2,FALSE),\"\")","v":""},{"$f":"IFERROR(IF(VLOOKUP(B44,Blankett!$I$12:$K$70,3,FALSE)=0,\"\",VLOOKUP(B44,Blankett!$I$12:$K$70,3,FALSE)),\"\")","v":""}]
[17,{"$f":"IF(A45<=Blankett!$I$67,A45,\"\")","v":""},{"$f":"IFERROR(VLOOKUP(B45,Blankett!$I$13:$K$70,2,FALSE),\"\")","v":""},{"$f":"IFERROR(IF(VLOOKUP(B45,Blankett!$I$12:$K$70,3,FALSE)=0,\"\",VLOOKUP(B45,Blankett!$I$12:$K$70,3,FALSE)),\"\")","v":""}]
[18,{"$f":"IF(A46<=Blankett!$I$67,A46,\"\")","v":""},{"$f":"IFERROR(VLOOKUP(B46,Blankett!$I$13:$K$70,2,FALSE),\"\")","v":""},{"$f":"IFERROR(IF(VLOOKUP(B46,Blankett!$I$12:$K$70,3,FALSE)=0,\"\",VLOOKUP(B46,Blankett!$I$12:$K$70,3,FALSE)),\"\")","v":""}]
[19,{"$f":"IF(A47<=Blankett!$I$67,A47,\"\")","v":""},{"$f":"IFERROR(VLOOKUP(B47,Blankett!$I$13:$K$70,2,FALSE),\"\")","v":""},{"$f":"IFERROR(IF(VLOOKUP(B47,Blankett!$I$12:$K$70,3,FALSE)=0,\"\",VLOOKUP(B47,Blankett!$I$12:$K$70,3,FALSE)),\"\")","v":""}]
[20,{"$f":"IF(A48<=Blankett!$I$67,A48,\"\")","v":""},{"$f":"IFERROR(VLOOKUP(B48,Blankett!$I$13:$K$70,2,FALSE),\"\")","v":""},{"$f":"IFERROR(IF(VLOOKUP(B48,Blankett!$I$12:$K$70,3,FALSE)=0,\"\",VLOOKUP(B48,Blankett!$I$12:$K$70,3,FALSE)),\"\")","v":""}]
[21,{"$f":"IF(A49<=Blankett!$I$67,A49,\"\")","v":""},{"$f":"IFERROR(VLOOKUP(B49,Blankett!$I$13:$K$70,2,FALSE),\"\")","v":""},{"$f":"IFERROR(IF(VLOOKUP(B49,Blankett!$I$12:$K$70,3,FALSE)=0,\"\",VLOOKUP(B49,Blankett!$I$12:$K$70,3,FALSE)),\"\")","v":""}]
[22,{"$f":"IF(A50<=Blankett!$I$67,A50,\"\")","v":""},{"$f":"IFERROR(VLOOKUP(B50,Blankett!$I$13:$K$70,2,FALSE),\"\")","v":""},{"$f":"IFERROR(IF(VLOOKUP(B50,Blankett!$I$12:$K$70,3,FALSE)=0,\"\",VLOOKUP(B50,Blankett!$I$12:$K$70,3,FALSE)),\"\")","v":""}]
[23,{"$f":"IF(A51<=Blankett!$I$67,A51,\"\")","v":""},{"$f":"IFERROR(VLOOKUP(B51,Blankett!$I$13:$K$70,2,FALSE),\"\")","v":""},{"$f":"IFERROR(IF(VLOOKUP(B51,Blankett!$I$12:$K$70,3,FALSE)=0,\"\",VLOOKUP(B51,Blankett!$I$12:$K$70,3,FALSE)),\"\")","v":""}]
[24,{"$f":"IF(A52<=Blankett!$I$67,A52,\"\")","v":""},{"$f":"IFERROR(VLOOKUP(B52,Blankett!$I$13:$K$70,2,FALSE),\"\")","v":""},{"$f":"IFERROR(IF(VLOOKUP(B52,Blankett!$I$12:$K$70,3,FALSE)=0,\"\",VLOOKUP(B52,Blankett!$I$12:$K$70,3,FALSE)),\"\")","v":""}]
[25,{"$f":"IF(A53<=Blankett!$I$67,A53,\"\")","v":""},{"$f":"IFERROR(VLOOKUP(B53,Blankett!$I$13:$K$70,2,FALSE),\"\")","v":""},{"$f":"IFERROR(IF(VLOOKUP(B53,Blankett!$I$12:$K$70,3,FALSE)=0,\"\",VLOOKUP(B53,Blankett!$I$12:$K$70,3,FALSE)),\"\")","v":""}]
[26,{"$f":"IF(A54<=Blankett!$I$67,A54,\"\")","v":""},{"$f":"IFERROR(VLOOKUP(B54,Blankett!$I$13:$K$70,2,FALSE),\"\")","v":""},{"$f":"IFERROR(IF(VLOOKUP(B54,Blankett!$I$12:$K$70,3,FALSE)=0,\"\",VLOOKUP(B54,Blankett!$I$12:$K$70,3,FALSE)),\"\")","v":""}]
[27,{"$f":"IF(A55<=Blankett!$I$67,A55,\"\")","v":""},{"$f":"IFERROR(VLOOKUP(B55,Blankett!$I$13:$K$70,2,FALSE),\"\")","v":""},{"$f":"IFERROR(IF(VLOOKUP(B55,Blankett!$I$12:$K$70,3,FALSE)=0,\"\",VLOOKUP(B55,Blankett!$I$12:$K$70,3,FALSE)),\"\")","v":""}]
[28,{"$f":"IF(A56<=Blankett!$I$67,A56,\"\")","v":""},{"$f":"IFERROR(VLOOKUP(B56,Blankett!$I$13:$K$70,2,FALSE),\"\")","v":""},{"$f":"IFERROR(IF(VLOOKUP(B56,Blankett!$I$12:$K$70,3,FALSE)=0,\"\",VLOOKUP(B56,Blankett!$I$12:$K$70,3,FALSE)),\"\")","v":""}]
[29,{"$f":"IF(A57<=Blankett!$I$67,A57,\"\")","v":""},{"$f":"IFERROR(VLOOKUP(B57,Blankett!$I$13:$K$70,2,FALSE),\"\")","v":""},{"$f":"IFERROR(IF(VLOOKUP(B57,Blankett!$I$12:$K$70,3,FALSE)=0,\"\",VLOOKUP(B57,Blankett!$I$12:$K$70,3,FALSE)),\"\")","v":""}]
[30,{"$f":"IF(A58<=Blankett!$I$67,A58,\"\")","v":""},{"$f":"IFERROR(VLOOKUP(B58,Blankett!$I$13:$K$70,2,FALSE),\"\")","v":""},{"$f":"IFERROR(IF(VLOOKUP(B58,Blankett!$I$12:$K$70,3,FALSE)=0,\"\",VLOOKUP(B58,Blankett!$I$12:$K$70,3,FALSE)),\"\")","v":""}]
[]
[]
[null,"Noterade brister åtgärdade"]
[]
[null,"Underskrift kontrollant"]
[null,"Namn kontrollant"]
[null,"Ort"]
[null,"Datum"]
[null,"Företag"]
[null,"Organisationsnummer"]
[null,"Telefonnr"]
[null,"E-post"]
[]
[]
[null,"Anteckningar säkerhetskontroll","Reg. Nr.",{"$f":"IF(Blankett!C6<>\"\",Blankett!C6,\"\")","v":""}]
[]
[null,{"$f":"Blankett!B74","v":0}]

{"sheet":"Rullistor","index":2,"n_rows":14,"n_cols":7,"rows_kept":14}
[]
[]
[]
[]
[null,"Typ av enhet","Bedömning","Tankkod","Välj alt. för lossningsutrustning>","Välj manifold"]
[null,"Ange enhet","Ange bedömning","Ange tankkod","Ange alternativ","Ange typ av manifold","Ange Ja/Nej"]
[null,"Tankbil","Godkänd","LGBF","Saknar mätare","Enkel manifold","Ja"]
[null,"Släp/Semitrailer","Ej Godkänd","LGBV","Självavringing genom mätare","Dubbel manifold","Nej"]
[null,null,"Ej Tillämpbart","L4BH","Mätare med förinställningsverk","Delad manifold"]
[{"$nulls":3},"L4BH (tjockolja)"]
[]
[null,null,"Ange bedömning"]
[null,null,"Godkänd"]
[null,null,"Ej Godkänd"]